bitfinex/quotes_SOLUSD_20220103
["timestamp","ask_amount","ask_price","bid_price","bid_amount"]
[1641179781041,116.0562,172.95,172.83,28.63286341]
[1641179781242,8.1,172.95,172.84,2.80862099]
[1641179781441,8.6,172.95,172.84,3.30862099]
[1641179781642,8.6,172.95,172.84,3.56862099]
[1641179781843,8.6767,172.91,172.84,3.56862099]
[1641179782044,8.6767,172.91,172.84,3.06862099]
[1641179782242,8.6767,172.91,172.84,2.80862099]
[1641179782442,8.6767,172.91,172.84,3.30862099]
[1641179782645,8.6767,172.91,172.84,2.80862099]
[1641179783545,8.6767,172.91,172.84,3.06862099]
[1641179784447,9.1767,172.91,172.84,3.06862099]
[1641179784948,8.6767,172.91,172.84,3.06862099]
[1641179786950,8.6761,172.92,172.84,3.06862099]
[1641179787151,8.6761,172.92,172.84,3.56862099]
[1641179788652,8.6756,172.93,172.84,3.56862099]
[1641179789253,1.2237,172.94,172.84,3.56862099]
[1641179789454,1.2237,172.94,172.84,12.24422099]
[1641179789854,9.8989,172.94,172.84,12.24422099]
[1641179794762,9.8989,172.94,172.85,1.42669368]
[1641179794959,9.8989,172.94,172.85,1.92669368]
[1641179795159,9.8989,172.94,172.85,0.76]
[1641179795362,9.8989,172.94,172.85,0.26]
[1641179796059,9.8989,172.94,172.84,11.87101806]
[1641179796359,9.8989,172.94,172.84,3.19541806]
[1641179796561,9.8989,172.94,172.84,2.69541806]
[1641179796761,10.3989,172.94,172.84,2.69541806]
[1641179796963,9.8989,172.94,172.82,2.7302137]
[1641179797162,8.1,172.93,172.83,0.5]
[1641179797366,8.6791,172.88,172.83,0.5]
[1641179797766,8.6791,172.88,172.82,3.2302137]
[1641179797969,9.1791,172.88,172.82,3.2302137]
[1641179798768,9.1791,172.88,172.82,3.4902137]
[1641179798968,8.6791,172.88,172.82,3.4902137]
[1641179799569,8.6791,172.88,172.83,2.4306962]
[1641179800096,8.6791,172.88,172.83,2.6906962]
[1641179805900,8.6791,172.88,172.83,0.26]
[1641179806099,8.6791,172.88,172.82,32.85922114]
[1641179807000,8.6791,172.88,172.83,2.86757269]
[1641179807402,8.6791,172.88,172.83,3.12757269]
[1641179808405,1.236,172.9,172.83,3.12757269]
[1641179808603,8.6776,172.89,172.83,3.12757269]
[1641179812209,37.0291,172.92,172.83,3.12757269]
[1641179812210,8.1,172.92,172.83,3.12757269]
[1641179812511,8.1,172.94,172.83,3.62757269]
[1641179812709,8.1,172.94,172.83,4.86537269]
[1641179813111,8.1,172.94,172.83,8.14445934]
[1641179813310,16.7755,172.94,172.83,16.82115934]
[1641179816114,16.7755,172.94,172.84,3.27908665]
[1641179816315,16.7755,172.94,172.86,25.97402296]
[1641179816513,16.7755,172.94,172.86,26.23402296]
[1641179816914,17.2755,172.94,172.86,26.23402296]
[1641179817113,16.7755,172.94,172.86,0.26]
[1641179817414,17.2755,172.94,172.83,7.88445934]
[1641179817613,17.2755,172.94,172.83,4.60537269]
[1641179818616,1.2285,172.93,172.83,13.28217269]
[1641179818816,8.6768,172.91,172.83,13.54217269]
[1641179820715,8.6768,172.91,172.83,4.86537269]
[1641179820916,8.6768,172.91,172.83,4.36537269]
[1641179821119,8.6768,172.91,172.83,4.10537269]
[1641179821316,8.6768,172.91,172.83,1.2378]
[1641179821815,8.6768,172.91,172.83,1.7378]
[1641179822215,8.6768,172.91,172.83,4.22401519]
[1641179822419,9.1768,172.91,172.83,4.22401519]
[1641179822616,9.1768,172.91,172.83,4.48401519]
[1641179822817,8.6768,172.91,172.83,4.48401519]
[1641179823823,8.6768,172.91,172.83,13.16091519]
[1641179827122,8.6768,172.91,172.83,12.66091519]
[1641179836935,8.6768,172.91,172.83,13.16091519]
[1641179840035,8.6768,172.91,172.83,12.66091519]
[1641179840239,8.6768,172.91,172.83,13.16091519]
[1641179842159,8.6768,172.91,172.83,10.6747]
[1641179850863,9.1768,172.91,172.83,10.6747]
[1641179852064,9.1768,172.91,172.84,2.25428483]
[1641179852465,9.1768,172.91,172.84,3.01428483]
[1641179852665,9.1768,172.91,172.83,1.2378]
[1641179853068,9.1768,172.91,172.83,1.7378]
[1641179853466,9.1768,172.91,172.82,23.93478765]
[1641179853669,9.1768,172.91,172.82,24.43478765]
[1641179853868,9.1768,172.91,172.82,27.36517737]
[1641179854265,9.1768,172.91,172.82,27.62517737]
[1641179854672,8.6768,172.91,172.82,27.62517737]
[1641179854870,1.5355732,172.92,172.82,29.05187105]
[1641179855067,8.676,172.92,172.82,35.37787105]
[1641179855868,8.676,172.92,172.82,33.95117737]
[1641179856269,8.676,172.92,172.82,27.62517737]
[1641179856469,8.676,172.92,172.82,36.30247737]
[1641179856670,8.676,172.92,172.82,37.72917105]
[1641179858275,8.676,172.92,172.82,35.80247737]
[1641179858573,8.676,172.92,172.82,26.86517737]
[1641179858772,9.176,172.92,172.82,26.86517737]
[1641179858973,1.259,172.91,172.82,26.86517737]
[1641179859171,8.6783,172.88,172.82,26.86517737]
[1641179859573,8.6783,172.88,172.82,23.93478765]
[1641179859777,8.6783,172.88,172.78,88.68398665]
[1641179859978,8.6783,172.88,172.78,80.58398665]
[1641179860175,8.6783,172.88,172.78,81.08398665]
[1641179860476,9.1783,172.88,172.79,2.35615377]
[1641179860679,8.68,172.84,172.79,2.35615377]
[1641179861080,8.68,172.84,172.79,2.61615377]
[1641179861875,8.68,172.84,172.79,3.11615377]
[1641179862479,8.6795,172.85,172.79,3.11615377]
[1641179870720,8.6795,172.85,172.79,11.79525377]
[1641179873921,8.6795,172.85,172.79,11.29525377]
[1641179874120,8.6795,172.85,172.79,8.6791]
[1641179874421,8.6795,172.85,172.78,116.39894327]
[1641179875223,8.6795,172.85,172.79,2.77186368]
[1641179875623,8.679,172.86,172.79,11.71086368]
[1641179875822,8.679,172.86,172.79,12.21086368]
[1641179878626,8.679,172.86,172.78,77.3049]
[1641179878827,8.679,172.86,172.77,4.57718665]
[1641179879030,17.279,172.86,172.78,0.5]
[1641179879729,17.279,172.86,172.77,4.69186148]
[1641179881128,17.279,172.86,172.77,1.7981]
[1641179881330,17.279,172.86,172.77,0.5]
[1641179881730,17.279,172.86,172.76,74.0446]
[1641179881937,8.6815,172.82,172.76,74.0446]
[1641179882136,8.6815,172.82,172.77,2.49360534]
[1641179882332,8.6815,172.82,172.77,1.99360534]
[1641179882533,8.6815,172.82,172.77,2.25360534]
[1641179883232,8.6815,172.82,172.77,0.26]
[1641179883432,8.6815,172.82,172.76,74.0446]
[1641179884432,8.6815,172.82,172.76,76.19276863]
[1641179884633,8.6815,172.82,172.76,75.19276863]
[1641179884834,9.1815,172.82,172.76,75.19276863]
[1641179885935,9.1815,172.82,172.76,74.69276863]
[1641179889539,9.1815,172.82,172.65,432.93324901]
[1641179889840,9.1815,172.82,172.72,7.6]
[1641179890440,9.1815,172.82,172.74,8.6813]
[1641179890643,9.1815,172.82,172.74,11.61420903]
[1641179891343,9.1815,172.82,172.74,12.37420903]
[1641179891344,1.3211,172.81,172.74,12.37420903]
[1641179892146,8.1,172.86,172.74,12.37420903]
[1641179892354,5.64670426,172.92,172.76,27.65998737]
[1641179892355,2.8787732,172.88,172.76,27.65998737]
[1641179892551,1.5355732,172.88,172.82,2.99738804]
[1641179892756,1.5355732,172.88,172.82,9.28638804]
[1641179892951,1.5355732,172.88,172.82,10.04638804]
[1641179893152,8.1,172.94,172.82,10.04638804]
[1641179893153,1.5355732,172.91,172.82,10.04638804]
[1641179893871,1.5355732,172.91,172.82,3.75738804]
[1641179894069,1.303,172.93,172.82,3.75738804]
[1641179894270,8.1,172.92,172.82,3.75738804]
[1641179894472,8.6,172.92,172.82,3.25738804]
[1641179894671,1.5355732,172.91,172.82,3.25738804]
[1641179894872,2.0355732,172.91,172.82,3.25738804]
[1641179895074,3.3139732,172.91,172.82,3.25738804]
[1641179895475,8.6791,172.87,172.82,3.25738804]
[1641179896276,8.6791,172.87,172.82,0.26]
[1641179896475,8.6791,172.87,172.79,0.76]
[1641179896876,9.1791,172.87,172.79,0.5]
[1641179897081,9.1791,172.87,172.75,84.83849368]
[1641179897276,1.279,172.86,172.76,33.71884689]
[1641179897478,9.9585,172.86,172.77,8.1]
[1641179897678,9.9585,172.86,172.79,2.85918048]
[1641179897882,9.9585,172.86,172.79,3.35918048]
[1641179898083,9.9585,172.86,172.79,3.61918048]
[1641179898482,9.9585,172.86,172.8,27.60935341]
[1641179898682,1.279,172.86,172.8,27.60935341]
[1641179898883,1.279,172.86,172.75,75.97849368]
[1641179899082,1.279,172.86,172.75,82.6518]
[1641179899586,1.279,172.86,172.75,74.5518]
[1641179899783,1.279,172.86,172.76,31.63050217]
[1641179899983,9.9582,172.86,172.77,8.6802]
[1641179900183,10.4582,172.86,172.77,8.6802]
[1641179900482,10.4582,172.86,172.77,8.9402]
[1641179900786,9.9582,172.86,172.77,8.9402]
[1641179900984,9.9582,172.86,172.77,7.4402]
[1641179901184,9.9582,172.86,172.77,7.1802]
[1641179901386,10.4582,172.86,172.76,40.81120217]
[1641179902088,9.9582,172.86,172.76,40.81120217]
[1641179902385,10.4582,172.86,172.76,40.81120217]
[1641179902585,10.4582,172.86,172.76,32.39050217]
[1641179902987,9.9582,172.86,172.76,32.39050217]
[1641179903185,9.9582,172.86,172.76,33.81719585]
[1641179903489,9.9582,172.86,172.76,32.39050217]
[1641179904486,9.9582,172.86,172.76,41.07110217]
[1641179904886,10.4582,172.86,172.76,41.07110217]
[1641179905686,9.9582,172.86,172.76,41.07110217]
[1641179905887,9.9582,172.86,172.77,1.42669368]
[1641179906088,9.9582,172.86,172.79,8.6789]
[1641179906287,9.9582,172.86,172.8,2.29198762]
[1641179906587,9.9582,172.86,172.8,2.55198762]
[1641179908288,9.9582,172.86,172.8,0.26]
[1641179908590,9.9582,172.86,172.76,29.62406625]
[1641179909191,9.9582,172.86,172.77,3.00818778]
[1641179909391,9.9582,172.86,172.77,12.18838778]
[1641179909590,9.4582,172.86,172.77,12.44838778]
[1641179910491,9.9582,172.86,172.77,3.26818778]
[1641179911794,9.9582,172.86,172.77,0.26]
[1641179911997,18.0582,172.86,172.75,83.993]
[1641179912199,18.0582,172.86,172.73,1.2451]
[1641179912395,74.4732,172.85,172.69,75.0085]
[1641179912695,74.4732,172.85,172.69,76.2854]
[1641179912696,8.683,172.79,172.69,76.2854]
[1641179912895,8.683,172.79,172.7,2.74569115]
[1641179913095,8.183,172.79,172.72,8.6828]
[1641179913295,8.183,172.79,172.73,2.38310702]
[1641179913696,8.183,172.79,172.73,2.88310702]
[1641179913899,8.6821,172.8,172.73,2.88310702]
[1641179915402,8.6821,172.8,172.73,11.56530702]
[1641179915602,8.6821,172.8,172.73,11.82530702]
[1641179916303,8.6821,172.8,172.73,3.14310702]
[1641179916502,8.6821,172.8,172.73,2.88310702]
[1641179917906,8.6821,172.8,172.73,3.14310702]
[1641179918506,8.6821,172.8,172.73,11.82540702]
[1641179919610,10.0095,172.82,172.74,25.75025706]
[1641179919828,10.0095,172.82,172.75,8.6812]
[1641179920029,10.0095,172.82,172.75,8.9412]
[1641179920529,10.0095,172.82,172.75,0.26]
[1641179920928,10.5095,172.82,172.73,3.14310702]
[1641179921729,10.5095,172.82,172.73,0.76]
[1641179922032,10.5095,172.82,172.7,29.82281911]
[1641179922033,18.6095,172.82,172.7,30.58281911]
[1641179922330,18.6095,172.82,172.72,8.6824]
[1641179922531,10.5095,172.82,172.72,8.9424]
[1641179922728,10.5095,172.82,172.73,2.63116683]
[1641179922928,10.5095,172.82,172.73,3.13116683]
[1641179923129,10.5095,172.82,172.73,3.39116683]
[1641179923928,10.5095,172.82,172.73,12.07356683]
[1641179924632,10.5095,172.82,172.73,3.39116683]
[1641179925131,10.5095,172.82,172.74,23.96640912]
[1641179925535,10.5095,172.82,172.74,24.22640912]
[1641179928335,10.0095,172.82,172.74,32.90820912]
[1641179928537,10.5095,172.82,172.74,32.90820912]
[1641179930638,10.5095,172.82,172.74,32.64820912]
[1641179930837,10.5095,172.82,172.74,23.96640912]
[1641179931240,10.0095,172.82,172.74,23.96640912]
[1641179931440,10.5095,172.82,172.74,23.96640912]
[1641179932243,10.0095,172.82,172.74,32.90820912]
[1641179932439,10.0095,172.82,172.74,33.40820912]
[1641179933654,8.6804,172.84,172.74,34.8349028]
[1641179933842,8.6804,172.84,172.74,33.40820912]
[1641179933843,1.7931,172.84,172.74,33.40820912]
[1641179934544,1.2931,172.84,172.74,33.40820912]
[1641179934748,9.9732,172.84,172.74,33.40820912]
[1641179934946,9.9732,172.84,172.74,34.8349028]
[1641179935148,9.9732,172.84,172.74,42.9349028]
[1641179940079,8.6801,172.84,172.74,42.9349028]
[1641179940578,8.6801,172.84,172.74,42.6749028]
[1641179940780,8.6801,172.84,172.74,41.24820912]
[1641179941280,9.1801,172.84,172.74,41.24820912]
[1641179941483,1.2557,172.83,172.74,41.24820912]
[1641179941678,8.681,172.82,172.74,41.24820912]
[1641179941878,1.2557,172.83,172.74,42.9349028]
[1641179942284,1.2557,172.83,172.74,41.50820912]
[1641179943380,9.9362,172.83,172.74,41.50820912]
[1641179943579,8.6805,172.83,172.74,41.50820912]
[1641179943779,1.5355732,172.86,172.74,42.9349028]
[1641179943980,1.3255,172.85,172.74,42.9349028]
[1641179944580,1.3255,172.85,172.74,43.9776028]
[1641179944780,1.3255,172.85,172.74,42.55090912]
[1641179944980,1.3255,172.85,172.74,34.45090912]
[1641179945381,1.8255,172.85,172.74,33.14820912]
[1641179945580,1.3255,172.85,172.74,33.14820912]
[1641179945780,8.6808,172.83,172.74,33.14820912]
[1641179945980,8.6808,172.83,172.74,33.40820912]
[1641179953399,8.6808,172.83,172.76,11.22430402]
[1641179953602,8.6808,172.83,172.76,11.48430402]
[1641179954004,8.6808,172.83,172.76,11.98430402]
[1641179954606,8.6808,172.83,172.76,11.48430402]
[1641179955205,8.6808,172.83,172.76,8.9408]
[1641179956307,8.6808,172.83,172.76,11.36776904]
[1641179956608,8.6808,172.83,172.76,8.6808]
[1641179956806,8.6808,172.83,172.69,75.0085]
[1641179957008,8.6836,172.77,172.69,75.0085]
[1641179957631,8.6836,172.77,172.7,23.73773808]
[1641179957932,8.6836,172.77,172.7,26.40355603]
[1641179958134,8.6836,172.77,172.7,26.66355603]
[1641179958744,8.683,172.78,172.7,35.34725603]
[1641179958933,8.683,172.78,172.7,35.08725603]
[1641179960236,1.2322,172.77,172.7,35.08725603]
[1641179960437,1.2322,172.77,172.7,35.34725603]
[1641179960438,9.9157,172.77,172.7,35.34725603]
[1641179961939,8.6829,172.79,172.7,35.34725603]
[1641179962240,0.0055732,172.83,172.79,17.3658]
[1641179962440,0.0055732,172.83,172.8,32.46478815]
[1641179962640,0.0055732,172.83,172.8,33.89148183]
[1641179962840,0.0055732,172.83,172.8,34.65148183]
[1641179963039,0.0055732,172.83,172.81,1.42669368]
[1641179963242,8.6762,172.92,172.81,1.42669368]
[1641179963440,8.6762,172.92,172.81,2.18669368]
[1641179964342,8.6762,172.92,172.81,10.86389368]
[1641179964941,9.1762,172.92,172.81,10.86389368]
[1641179965144,9.1762,172.92,172.81,8.9372]
[1641179965344,9.1762,172.92,172.81,9.4372]
[1641179965548,9.1762,172.92,172.81,8.9372]
[1641179966352,9.1762,172.92,172.81,9.4372]
[1641179966746,9.1762,172.92,172.81,8.9372]
[1641179967248,9.1762,172.92,172.81,8.6772]
[1641179967450,9.4362,172.92,172.8,30.08550865]
[1641179967649,8.1,172.91,172.8,30.08550865]
[1641179967848,8.6802,172.86,172.8,30.08550865]
[1641179968351,8.6,172.91,172.8,30.58550865]
[1641179968548,8.6,172.91,172.81,2.82406956]
[1641179968748,8.6793,172.86,172.81,2.82406956]
[1641179969350,8.6793,172.86,172.81,3.32406956]
[1641179969550,8.6793,172.86,172.81,2.82406956]
[1641179969750,8.6793,172.86,172.81,3.08406956]
[1641179970353,8.6787,172.88,172.81,12.26256956]
[1641179970653,8.6787,172.88,172.81,11.76256956]
[1641179971254,8.6787,172.88,172.81,12.26256956]
[1641179971454,8.6787,172.88,172.81,3.08406956]
[1641179971855,8.6787,172.88,172.81,3.58406956]
[1641179972253,8.6787,172.88,172.81,3.08406956]
[1641179972855,8.6787,172.88,172.81,12.26276956]
[1641179974855,8.6787,172.88,172.81,11.76276956]
[1641179975457,8.6787,172.88,172.81,12.26276956]
[1641179975857,8.6787,172.88,172.81,11.76276956]
[1641179976258,8.6787,172.88,172.81,12.26276956]
[1641179976658,8.6787,172.88,172.81,11.76276956]
[1641179977257,8.6787,172.88,172.81,12.26276956]
[1641179977459,8.6787,172.88,172.81,3.58406956]
[1641179977860,8.6787,172.88,172.81,2.82406956]
[1641179978461,8.6787,172.88,172.81,3.32406956]
[1641179979262,8.6787,172.88,172.81,3.58406956]
[1641179979660,8.6787,172.88,172.81,12.00246956]
[1641179979860,8.6787,172.88,172.81,11.50246956]
[1641179980063,8.6787,172.88,172.81,2.82406956]
[1641179980261,8.6787,172.88,172.81,3.32406956]
[1641179980663,8.6787,172.88,172.81,2.82406956]
[1641179981066,8.6787,172.88,172.81,3.08406956]
[1641179981866,9.1787,172.88,172.81,3.58406956]
[1641179982066,8.6787,172.88,172.81,3.58406956]
[1641179982468,8.6787,172.88,172.81,3.08406956]
[1641179982669,8.6787,172.88,172.81,2.82406956]
[1641179983065,8.6787,172.88,172.81,11.50276956]
[1641179983268,8.6787,172.88,172.81,12.00276956]
[1641179983471,8.6787,172.88,172.81,11.50276956]
[1641179983869,8.6787,172.88,172.81,2.82406956]
[1641179984068,8.6787,172.88,172.81,3.58406956]
[1641179984268,8.6787,172.88,172.81,3.08406956]
[1641179984468,8.6787,172.88,172.81,2.82406956]
[1641179984868,8.6787,172.88,172.81,3.32406956]
[1641179985868,8.6787,172.88,172.81,3.58406956]
[1641179987173,8.6787,172.88,172.81,3.08406956]
[1641179987971,8.6787,172.88,172.81,0.26]
[1641179988373,8.1,172.87,172.79,17.3658]
[1641179988776,8.6815,172.83,172.79,17.3658]
[1641179989476,8.6815,172.83,172.79,17.6258]
[1641179989675,8.6815,172.83,172.79,20.50863784]
[1641179992979,8.6815,172.83,172.79,17.6258]
[1641179996082,8.6815,172.83,172.64,281.65946454]
[1641179996083,55.72022664,172.82,172.64,281.65946454]
[1641179996282,55.72022664,172.82,172.69,8.1]
[1641179996482,22.72022664,172.82,172.71,1.42669368]
[1641179996881,2.72022664,172.82,172.75,8.6813]
[1641179997285,2.72022664,172.82,172.75,11.94895135]
[1641179998187,2.72022664,172.82,172.75,12.44895135]
[1641179998488,2.72022664,172.82,172.75,11.94895135]
[1641179999712,78.8812,172.84,172.75,12.44895135]
[1641180000017,77.6118,172.84,172.75,12.44895135]
[1641180000213,77.6118,172.84,172.75,13.87564503]
[1641180000514,77.6118,172.84,172.75,12.44895135]
[1641180000716,2.41912863,172.83,172.75,12.44895135]
[1641180001712,2.41912863,172.83,172.73,28.934]
[1641180001913,25.0,172.82,172.73,0.26]
[1641180002115,1.2946,172.82,172.73,1.42669368]
[1641180002324,1.2946,172.82,172.76,8.6808]
[1641180003013,1.2946,172.82,172.76,11.53952542]
[1641180003216,1.2946,172.82,172.76,11.79952542]
[1641180007719,77.6118,172.84,172.76,11.79952542]
[1641180007917,77.6118,172.84,172.76,18.66452542]
[1641180008320,77.6118,172.84,172.76,43.84210346]
[1641180008720,77.6118,172.84,172.76,45.26879714]
[1641180008918,77.6118,172.84,172.76,43.84210346]
[1641180009519,77.6118,172.84,172.77,1.42669368]
[1641180009719,77.6118,172.84,172.79,8.6795]
[1641180010221,77.6118,172.84,172.8,2.86156381]
[1641180010619,77.6118,172.84,172.8,3.12156381]
[1641180011422,77.1118,172.84,172.8,11.80056381]
[1641180012220,77.1118,172.84,172.8,41.04697079]
[1641180012622,106.4278,172.91,172.8,41.04697079]
[1641180012623,8.1,172.92,172.8,42.47366447]
[1641180012824,1.3448,172.91,172.8,42.47366447]
[1641180013421,2.78064963,172.9,172.8,42.47366447]
[1641180017426,1.3448,172.91,172.8,42.47366447]
[1641180018328,2.56754927,172.9,172.8,42.47366447]
[1641180018727,1.3448,172.91,172.8,42.47366447]
[1641180019830,4.03113033,172.91,172.8,42.47366447]
[1641180021032,4.03113033,172.91,172.82,0.41971391]
[1641180021232,4.03113033,172.91,172.86,8.6761]
[1641180021433,1.3448,172.91,172.86,37.61950047]
[1641180021632,1.3448,172.91,172.86,37.87950047]
[1641180022032,1.3448,172.91,172.89,0.41971391]
[1641180022231,3.03219997,172.9,172.89,0.41971391]
[1641180022634,96.2108,172.95,172.89,3.45191387]
[1641180023037,96.2108,172.95,172.89,3.71191387]
[1641180023835,2.91470006,172.94,172.89,3.71191387]
[1641180024638,2.91470006,172.94,172.89,5.9376632]
[1641180028773,2.41470006,172.94,172.89,5.9376632]
[1641180028973,2.41470006,172.94,172.89,3.71191387]
[1641180030576,11.09050006,172.94,172.89,3.45191387]
[1641180030784,11.09050006,172.94,172.89,0.41971391]
[1641180031176,53.0,172.93,172.79,8.1]
[1641180031378,8.1,172.92,172.81,8.6783]
[1641180031579,8.36,172.92,172.81,8.6783]
[1641180031778,8.86,172.92,172.81,8.6783]
[1641180032180,2.69988049,172.91,172.82,2.76207669]
[1641180032381,8.6782,172.9,172.82,2.76207669]
[1641180032580,10.0155,172.9,172.82,11.70027669]
[1641180032783,10.0155,172.9,172.82,11.44027669]
[1641180033384,1.3373,172.9,172.82,11.44027669]
[1641180034082,1.3373,172.9,172.82,11.70027669]
[1641180037188,1.3373,172.9,172.83,31.82315099]
[1641180037487,1.3373,172.9,172.83,40.76055099]
[1641180037689,10.0151,172.9,172.83,8.9374]
[1641180042394,10.0151,172.9,172.85,0.21061176]
[1641180043192,1.3373,172.9,172.85,2.69383273]
[1641180043616,1.3373,172.9,172.85,2.95383273]
[1641180045919,1.3373,172.9,172.85,11.63063273]
[1641180046118,2.69988049,172.91,172.85,11.63063273]
[1641180047023,2.69988049,172.91,172.86,25.78040417]
[1641180047223,2.69988049,172.91,172.86,34.45640417]
[1641180047523,1.2319,172.93,172.86,34.71640417]
[1641180047923,1.7319,172.93,172.86,34.71640417]
[1641180049123,2.26338909,172.92,172.86,34.71640417]
[1641180049323,2.26338909,172.92,172.86,8.936]
[1641180050826,2.26338909,172.92,172.85,0.21061176]
[1641180051329,10.36338909,172.92,172.85,0.21061176]
[1641180051530,1.3341,172.91,172.85,0.21061176]
[1641180051726,8.6781,172.9,172.85,0.21061176]
[1641180051925,2.42483075,172.89,172.85,0.21061176]
[1641180053429,11.10303075,172.89,172.85,0.21061176]
[1641180054031,2.42483075,172.89,172.85,0.21061176]
[1641180054232,1.3084,172.91,172.85,0.21061176]
[1641180055228,2.65704731,172.9,172.85,0.21061176]
[1641180055836,2.65704731,172.9,172.85,2.73773907]
[1641180056030,9.9859,172.91,172.85,2.99773907]
[1641180057030,2.71329763,172.9,172.85,2.99773907]
[1641180057231,2.71329763,172.9,172.85,0.47061176]
[1641180057431,2.71329763,172.9,172.85,0.21061176]
[1641180057630,3.98069763,172.9,172.85,0.21061176]
[1641180058532,1.2674,172.9,172.85,3.04408866]
[1641180058731,1.2674,172.9,172.85,3.30408866]
[1641180062236,1.2674,172.9,172.85,27.32942989]
[1641180062839,1.2674,172.9,172.85,36.00602989]
[1641180067844,1.2674,172.9,172.85,11.98068866]
[1641180068243,8.6761,172.93,172.85,18.61268866]
[1641180068442,1.2586,172.94,172.85,18.61268866]
[1641180068842,1.2586,172.94,172.86,26.94484285]
[1641180069043,1.2586,172.94,172.89,8.6744]
[1641180069242,1.2586,172.94,172.9,2.18351755]
[1641180069648,1.2586,172.94,172.9,28.24582395]
[1641180070146,1.2586,172.94,172.9,36.92002395]
[1641180070544,1.3047,172.95,172.9,36.92002395]
[1641180070545,85.08528092,173.0,172.9,36.92002395]
[1641180070743,86.42018092,173.0,172.9,36.92002395]
[1641180071344,8.6739,172.98,172.9,36.92002395]
[1641180072148,4.31118208,172.97,172.9,36.92002395]
[1641180072746,1.3227,172.97,172.9,36.92002395]
[1641180073349,82.6441,173.0,172.9,36.92002395]
[1641180073850,2.55452327,172.99,172.9,36.92002395]
[1641180083460,75.849,173.0,172.9,36.92002395]
[1641180084880,78.28763159,173.0,172.9,36.92002395]
[1641180090887,78.28763159,173.0,172.9,38.22302455]
[1641180093593,75.849,173.0,172.9,38.22302455]
[1641180094694,75.849,173.0,172.9,46.96972455]
[1641180096997,75.849,173.0,172.9,50.15233601]
[1641180097402,3.02570779,173.04,172.91,8.1]
[1641180097698,3.02570779,173.04,172.98,26.64523822]
[1641180098097,3.02570779,173.04,172.98,26.90523822]
[1641180098497,3.02570779,173.04,172.99,2.9049204]
[1641180098897,3.02570779,173.04,172.99,3.1649204]
[1641180099301,3.02570779,173.04,173.01,8.668]
[1641180099500,3.03219997,173.03,173.01,8.928]
[1641180100101,3.02570779,173.04,173.02,3.03219996]
[1641180100302,3.02570779,173.04,173.01,8.928]
[1641180100900,3.03219997,173.03,173.01,8.928]
[1641180101699,3.03219997,173.03,173.01,11.96019996]
[1641180102101,3.02570779,173.04,173.01,11.96019996]
[1641180102301,3.02570779,173.04,173.01,3.03219996]
[1641180102905,3.03219997,173.03,173.01,3.03219996]
[1641180103102,3.03219997,173.03,172.98,26.64523822]
[1641180103303,5.20688433,173.03,172.98,26.64523822]
[1641180103903,6.44028433,173.03,172.98,26.64523822]
[1641180104406,6.44028433,173.03,173.0,8.6692]
[1641180104604,6.44028433,173.03,172.94,28.9001]
[1641180104806,6.44028433,173.03,172.92,3.18261146]
[1641180105003,6.44028433,173.03,172.9,13.23231206]
[1641180105204,77.8537,173.02,172.9,13.23231206]
[1641180105410,77.8537,173.02,172.94,8.6718]
[1641180105606,77.8537,173.02,172.95,23.72043811]
[1641180105806,2.46350045,173.0,172.95,23.72043811]
[1641180106006,2.46350045,173.0,172.95,23.98043811]
[1641180106212,2.46350045,173.0,172.95,26.64079578]
[1641180107305,2.46350045,173.0,172.95,35.31249578]
[1641180108309,1.2509,173.01,172.95,35.31249578]
[1641180113141,1.2509,173.01,172.95,35.05249578]
[1641180113639,2.40659202,173.0,172.95,32.39213811]
[1641180114639,2.40659202,173.0,172.95,34.82237572]
[1641180114840,1.2509,173.01,172.95,35.08237572]
[1641180115240,3.02570779,173.04,172.95,35.08237572]
[1641180115644,3.02570779,173.04,172.95,36.5090694]
[1641180116240,3.02570779,173.04,172.95,35.08237572]
[1641180119346,2.94470779,173.04,172.95,35.08237572]
[1641180120547,2.94470779,173.04,172.95,36.5090694]
[1641180121150,2.94470779,173.04,172.98,1.3030006]
[1641180121354,2.94470779,173.04,173.01,8.6684]
[1641180121551,2.94470779,173.04,173.02,3.03219996]
[1641180121750,3.03219997,173.03,173.01,8.9284]